fUSD/lending_fUSD_20250523
["ID","MTS","AMOUNT","RATE_DAILY","PERIOD"]
[362134853,1748019059942,-420.0,0.00028082,4]
[362134854,1748019059952,-420.0,0.00028082,4]
[362134855,1748019059962,-420.0,0.00028082,4]
[362134856,1748019059972,-420.0,0.00028082,4]
[362134857,1748019059981,-512.81335617,0.00028082,4]
[362134858,1748019059991,-565.45430987,0.00028082,4]
[362134859,1748019060001,-523.52,0.00028082,4]
[362134860,1748019060011,-562.48,0.00028082,4]
[362134861,1748019060021,-1006.23,0.00028082,4]
[362134862,1748019060030,-25994.11,0.00028082,4]
[362134863,1748019060039,-1844.83,0.00028082,4]
[362134864,1748019060050,-420.0,0.00028082,4]
[362134865,1748019060060,-420.0,0.00028082,4]
[362134866,1748019060070,-420.0,0.00028082,4]
[362134867,1748019060080,-420.0,0.00028082,4]
[362134868,1748019060090,-420.0,0.00028082,4]
[362134869,1748019060099,-420.0,0.00028082,4]
[362134870,1748019060109,-191.99320177,0.00028082,4]
[362134871,1748019060119,-1299.52,0.00028082,4]
[362134872,1748019060130,-420.0,0.00028082,4]
[362134873,1748019060140,-420.0,0.00028082,4]
[362134874,1748019060151,-421.35,0.00028082,4]
[362134875,1748019060160,-483.36030538,0.00028082,4]
[362134876,1748019060171,-420.0,0.00028082,4]
[362134877,1748019060181,-289.19,0.00028082,4]
[362134878,1748019060190,-420.0,0.00028082,4]
[362134879,1748019060200,-516.92,0.00028082,4]
[362134880,1748019060210,-420.0,0.00028082,4]
[362134881,1748019060219,-185.81,0.00028082,4]
[362134882,1748019060229,-506.04,0.00028082,4]
[362134883,1748019060239,-5988.5,0.00028082,4]
[362134884,1748019060249,-420.0,0.00028082,4]
[362134885,1748019060260,-420.0,0.00028082,4]
[362134886,1748019060271,-420.0,0.00028082,4]
[362134887,1748019060281,-533.7,0.00028082,4]
[362134888,1748019060291,-420.0,0.00028082,4]
[362134889,1748019060301,-420.0,0.00028082,4]
[362134890,1748019060311,-492.0,0.00028082,4]
[362134891,1748019060320,-420.0,0.00028082,4]
[362134892,1748019060330,-420.0,0.00028082,4]
[362134893,1748019060340,-420.0,0.00028082,4]
[362134894,1748019060349,-3105.51,0.00028082,2]
[362134895,1748019060359,-354.28706065,0.00028082,4]
[362134896,1748019060368,-470.9,0.00028082,4]
[362134897,1748019060378,-420.0,0.00028082,4]
[362134898,1748019060388,-420.0,0.00028082,4]
[362134899,1748019060398,-420.0,0.00028082,4]
[362134900,1748019060407,-420.0,0.00028082,4]
[362134901,1748019060419,-151.0,0.00028082,7]
[362134902,1748019060429,-420.0,0.00028082,4]
[362134903,1748019060439,-420.0,0.00028082,4]
[362134904,1748019060448,-151.0,0.00028082,7]
[362134905,1748019060458,-7638.69,0.00028082,4]
[362134906,1748019060468,-261.23,0.00028082,4]
[362134907,1748019060477,-166.89456457,0.00028082,4]
[362134908,1748019060487,-514.34,0.00028082,4]
[362134909,1748019060497,-420.0,0.00028082,4]
[362134910,1748019060506,-420.0,0.00028082,4]
[362134911,1748019060517,-420.0,0.00028082,4]
[362134912,1748019060527,-420.0,0.00028082,4]
[362134913,1748019060538,-420.0,0.00028082,4]
[362134914,1748019060550,-420.0,0.00028082,4]
[362134915,1748019060561,-420.0,0.00028082,4]
[362134916,1748019060571,-420.0,0.00028082,4]
[362134917,1748019060580,-4274.15,0.00028082,4]
[362134918,1748019060590,-491.78,0.00028082,4]
[362134919,1748019060600,-420.0,0.00028082,4]
[362134920,1748019060610,-2080.09,0.00028082,4]
[362134921,1748019060620,-420.0,0.00028082,4]
[362134922,1748019060630,-420.0,0.00028082,4]
[362134923,1748019060639,-247.63,0.00028082,4]
[362134924,1748019060649,-738.08,0.00028082,4]
[362134925,1748019060660,-420.0,0.00028082,4]
[362134926,1748019060671,-420.0,0.00028082,4]
[362134927,1748019060681,-420.0,0.00028082,4]
[362134928,1748019060691,-420.0,0.00028082,2]
[362134929,1748019060701,-479.370964,0.00028082,4]
[362134930,1748019060711,-307.29390785,0.00028082,4]
[362134931,1748019060729,-148.45609215,0.00028082,4]
[362134932,1748019060739,-420.0,0.00028082,4]
[362134933,1748019060749,-502.61617291,0.00028082,4]
[362134934,1748019060761,-13.39382709,0.00028082,4]
[362134935,1748019060770,-420.0,0.00028082,4]
[362134936,1748019060780,-449.93193026,0.00028082,4]
[362134937,1748019060789,-113.36734789,0.00028089,2]
[362134938,1748019060809,-641.60428999,0.00028089,2]
[362134939,1748019060824,-862.48,0.00027397,4]
[362134940,1748019060834,-1113.12453716,0.00028089,2]
[362134941,1748019060846,-3504.49997194,0.00028089,2]
[362134942,1748019060856,-10000.0,0.000281,4]
[362134943,1748019060866,-151.0,0.000281,7]
[362134944,1748019060876,-18435.78917609,0.00028102,2]
[362134945,1748019060887,-276.15038251,0.0002811,30]
[362134946,1748019060897,-510.600998,0.00028136,120]
[362134947,1748019060906,-2000.0,0.00028136,120]
[362134948,1748019060916,-500.0,0.00028136,120]
[362134949,1748019060925,-151.0,0.00028136,7]
[362134950,1748019060935,-600.0,0.00028187,7]
[362134951,1748019060944,-430.71765569,0.00028192,2]
[362134952,1748019060954,-10000.0,0.000282,4]
[362134953,1748019060964,-1000.0,0.000282,2]
[362134954,1748019060974,-151.0,0.000282,7]
[362134955,1748019061025,-151.0,0.000282,7]
[362134956,1748019061035,-151.0,0.000282,7]
[362134957,1748019061045,-1834.366864,0.000282,7]
[362134958,1748019061054,-151.0,0.00028209,7]
[362134959,1748019061063,-151.0,0.00028209,7]
[362134960,1748019061073,-162.07,0.0002821,2]
[362134961,1748019061082,-217.84,0.00028218,2]
[362134962,1748019061091,-254.68540483,0.00028218,2]
[362134963,1748019061100,-368.278338,0.00028219,4]
[362134964,1748019061110,-550.47,0.00028219,4]
[362134965,1748019061119,-420.0,0.00028219,4]
[362134966,1748019061128,-420.0,0.00028219,4]
[362134967,1748019061138,-420.0,0.00028219,4]
[362134968,1748019061147,-420.0,0.00028219,4]
[362134969,1748019061157,-420.0,0.00028219,4]
[362134970,1748019061166,-420.0,0.00028219,4]
[362134971,1748019061176,-420.0,0.00028219,4]
[362134972,1748019061186,-420.0,0.00028219,4]
[362134973,1748019061196,-151.0,0.00028219,7]
[362134974,1748019061205,-151.0,0.00028219,7]
[362134975,1748019061215,-151.0,0.00028219,7]
[362134976,1748019061224,-531.89964794,0.00028219,4]
[362134977,1748019061234,-420.0,0.00028219,4]
[362134978,1748019061243,-202.1,0.00028219,4]
[362134979,1748019061252,-420.0,0.00028219,4]
[362134980,1748019061262,-341.57,0.00028219,4]
[362134981,1748019061272,-420.0,0.00028219,4]
[362134982,1748019061282,-420.0,0.00028219,4]
[362134983,1748019061291,-420.0,0.00028219,4]
[362134984,1748019061300,-523.52,0.00028219,4]
[362134985,1748019061309,-289.667366,0.00028219,7]
[362134986,1748019061319,-562.48,0.00028219,4]
[362134987,1748019061329,-1006.23,0.00028219,4]
[362134988,1748019061338,-25994.11,0.00028219,4]
[362134989,1748019061348,-1844.83,0.00028219,4]
[362134990,1748019061359,-420.0,0.00028219,4]
[362134991,1748019061368,-420.0,0.00028219,4]
[362134992,1748019061377,-420.0,0.00028219,4]
[362134993,1748019061387,-420.0,0.00028219,4]
[362134994,1748019061397,-420.0,0.00028219,4]
[362134995,1748019061406,-420.0,0.00028219,4]
[362134996,1748019061419,-1299.52,0.00028219,4]
[362134997,1748019061429,-420.0,0.00028219,4]
[362134998,1748019061438,-157.52,0.00028219,4]
[362134999,1748019061448,-421.35,0.00028219,4]
[362135000,1748019061457,-420.0,0.00028219,4]
[362135001,1748019061467,-420.0,0.00028219,4]
[362135002,1748019061476,-516.92,0.00028219,4]
[362135003,1748019061486,-420.0,0.00028219,4]
[362135004,1748019061495,-506.04,0.00028219,4]
[362135005,1748019061504,-5988.5,0.00028219,4]
[362135006,1748019061514,-420.0,0.00028219,4]
[362135007,1748019061523,-420.0,0.00028219,4]
[362135008,1748019061532,-420.0,0.00028219,4]
[362135009,1748019061544,-533.7,0.00028219,4]
[362135010,1748019061554,-420.0,0.00028219,4]
[362135011,1748019061564,-420.0,0.00028219,4]
[362135012,1748019061574,-420.0,0.00028219,4]
[362135013,1748019061584,-420.0,0.00028219,4]
[362135014,1748019061594,-420.0,0.00028219,4]
[362135015,1748019061603,-3105.51,0.00028219,2]
[362135016,1748019061612,-420.0,0.00028219,4]
[362135017,1748019061623,-338.66399125,0.00028219,4]
[362135018,1748019061632,-420.0,0.00028219,4]
[362135019,1748019061642,-420.0,0.00028219,4]
[362135020,1748019061651,-420.0,0.00028219,4]
[362135021,1748019061660,-420.0,0.00028219,4]
[362135022,1748019061672,-7638.69,0.00028219,4]
[362135023,1748019061681,-514.34,0.00028219,4]
[362135024,1748019061691,-420.0,0.00028219,4]
[362135025,1748019061700,-420.0,0.00028219,4]
[362135026,1748019061710,-420.0,0.00028219,4]
[362135027,1748019061720,-420.0,0.00028219,4]
[362135028,1748019061729,-169.66,0.00028219,4]
[362135029,1748019061739,-420.0,0.00028219,4]
[362135030,1748019061748,-420.0,0.00028219,4]
[362135031,1748019061757,-420.0,0.00028219,4]
[362135032,1748019061767,-4274.15,0.00028219,4]
[362135033,1748019061777,-491.78,0.00028219,4]
[362135034,1748019061786,-420.0,0.00028219,4]
[362135035,1748019061795,-2080.09,0.00028219,4]
[362135036,1748019061805,-420.0,0.00028219,4]
[362135037,1748019061814,-420.0,0.00028219,4]
[362135038,1748019061824,-738.08,0.00028219,4]
[362135039,1748019061833,-469.13856276,0.00028219,4]
[362135040,1748019061843,-420.0,0.00028219,4]
[362135041,1748019061853,-420.0,0.00028219,4]
[362135042,1748019061863,-420.0,0.00028219,2]
[362135043,1748019061872,-479.370964,0.00028219,4]
[362135044,1748019061881,-455.75,0.00028219,4]
[362135045,1748019061891,-420.0,0.00028219,4]
[362135046,1748019061900,-429.15,0.00028219,4]
[362135047,1748019061909,-516.01,0.00028219,4]
[362135048,1748019061920,-276.15038251,0.00028219,30]
[362135049,1748019061930,-207.0,0.0002829,2]
[362135050,1748019061939,-152.380896,0.0002829,7]
[362135051,1748019061948,-10000.0,0.000283,4]
[362135052,1748019061958,-276.15038251,0.00028329,30]
[362135053,1748019061967,-4639.9173939,0.00028336,2]
[362135054,1748019061977,-2495.1840196,0.00028336,2]
[362135055,1748019061986,-67443.6450968,0.00028336,2]
[362135056,1748019061995,-368.278338,0.00028356,4]
[362135057,1748019062005,-550.47,0.00028356,4]
[362135058,1748019062014,-420.0,0.00028356,4]
[362135059,1748019062023,-420.0,0.00028356,4]
[362135060,1748019062032,-151.0,0.00028356,7]
[362135061,1748019062042,-491.61,0.00028356,4]
[362135062,1748019062051,-420.0,0.00028356,4]
[362135063,1748019062060,-420.0,0.00028356,4]
[362135064,1748019062069,-420.0,0.00028356,4]
[362135065,1748019062078,-420.0,0.00028356,4]
[362135066,1748019062089,-420.0,0.00028356,4]
[362135067,1748019062098,-420.0,0.00028356,4]
[362135068,1748019062107,-173.578116,0.00028356,4]
[362135069,1748019062116,-420.0,0.00028356,4]
[362135070,1748019062125,-151.0,0.00028356,7]
[362135071,1748019062135,-420.0,0.00028356,4]
[362135072,1748019062144,-420.0,0.00028356,4]
[362135073,1748019062153,-151.0,0.00028356,7]
[362135074,1748019062163,-420.0,0.00028356,4]
[362135075,1748019062173,-523.52,0.00028356,4]
[362135076,1748019062182,-562.48,0.00028356,4]
[362135077,1748019062191,-1006.23,0.00028356,4]
[362135078,1748019062200,-23126.834495,0.00028356,4]
[362135079,1748019062213,-2867.275505,0.00028356,4]
[362135080,1748019062222,-1526.90945244,0.00028356,4]
[362135081,1748019062233,-317.92054756,0.00028356,4]
[362135082,1748019062243,-420.0,0.00028356,4]
[362135083,1748019062253,-420.0,0.00028356,4]
[362135084,1748019062262,-420.0,0.00028356,4]
[362135085,1748019062271,-420.0,0.00028356,4]
[362135086,1748019062281,-285.89177567,0.00028356,4]
[362135087,1748019062290,-420.0,0.00028356,4]
[362135088,1748019062300,-1299.52,0.00028356,4]
[362135089,1748019062309,-157.76767677,0.00028356,4]
[362135090,1748019062773,493.57,0.00026648,120]
[362135091,1748019111224,250.0,0.00015,2]
[362135092,1748019112308,300.0,0.00017,2]
[362135094,1748019363797,152.88,0.00013699,2]
[362135095,1748019482260,-350.0,0.00019,2]
[362135096,1748019482297,-250.0,0.00020698,2]
[362135097,1748019482332,-250.0,0.000209,2]
[362135098,1748019482366,-152.88,0.00021404,2]
[362135099,1748019482402,-480.0,0.00022395,2]
[362135100,1748019482436,-8008.17,0.00022396,2]
[362135101,1748019482472,-250.0,0.00023347,2]
[362135102,1748019482506,-300.0,0.00023898,2]
[362135103,1748019482547,-456.91246625,0.000239,10]
[362135105,1748020027104,-1241.0,0.000207,5]
[362135106,1748020027125,-30.47517327,0.00022802,2]
[362135107,1748020200035,227.22,0.0002522,120]
[362135113,1748020232164,-173.91,0.00020346,2]
[362135114,1748020232174,-159.93482673,0.00022802,2]
[362135115,1748020232182,-213.41371029,0.00023898,2]
[362135116,1748020232217,-132.59399444,0.00023898,2]
[362135117,1748020232227,-200.0,0.00024683,2]
[362135118,1748020232236,-500.0,0.0002522,2]
[362135119,1748020232246,-704.55,0.00025277,2]
[362135120,1748020232255,-1000.0,0.00025279,2]
[362135121,1748020232265,-206.0,0.00025328,2]
[362135122,1748020232274,-161.62,0.00025389,2]
[362135123,1748020232284,-500.0,0.00025447,7]
[362135124,1748020232294,-1300.67,0.00025488,2]
[362135125,1748020232303,-362.0,0.00025496,2]
[362135126,1748020232313,-2324.79,0.00025547,2]
[362135127,1748020232322,-150.0,0.00025574,2]
[362135128,1748020232331,-2222.9,0.00025574,2]
[362135129,1748020232340,-200.0,0.00025666,2]
[362135130,1748020232350,-1500.0,0.00025726,2]
[362135131,1748020232359,-6838.0,0.00025827,2]
[362135132,1748020232368,-4052.0,0.00025827,2]
[362135133,1748020232378,-881.0,0.00025827,2]
[362135134,1748020232387,-441.68205066,0.000259,14]
[362135135,1748020232396,-207.4,0.00025929,2]
[362135136,1748020232405,-2149.49727621,0.00025945,2]
[362135137,1748020232417,-730.54091556,0.00025945,2]
[362135138,1748020232428,-393.283345,0.00025945,2]
[362135139,1748020232440,-405.57,0.00025945,2]
[362135140,1748020232451,-98.59846323,0.00025945,2]
[362135142,1748020232461,-164.98,0.0002598,2]
[362135144,1748020232470,-250.0,0.00026216,2]
[362135146,1748020232479,-584.41313677,0.00026225,2]
[362135148,1748020232490,-255.97559429,0.00026225,2]
[362135150,1748020232501,-586.89043811,0.00026225,2]
[362135152,1748020232512,-1212.17759608,0.00026225,2]
[362135155,1748020232523,-932.14276215,0.00026225,2]
[362135156,1748020232533,-321.79774838,0.00026225,2]
[362135157,1748020232544,-329.3988,0.00026225,2]
[362135158,1748020232559,-8427.28067444,0.00026225,2]
[362135159,1748020232570,-1928.7489092,0.00026225,2]
[362135190,1748020238147,-154.0,0.00025827,2]
[362135191,1748020238159,-9321.17434058,0.00026225,2]
[362135192,1748020238171,-173.00385237,0.00026225,2]
[362135193,1748020238183,-154.00185799,0.00026354,8]
[362135194,1748020238195,-852.52324002,0.00026447,10]
[362135195,1748020238206,-33317.06470903,0.00026454,2]
[362135196,1748020238219,-8873.66236798,0.00026454,2]
[362135197,1748020238233,-992.0,0.00026454,2]
[362135198,1748020238257,-9131.76966047,0.00026454,2]
[362135199,1748020238271,-633.053,0.00026454,2]
[362135200,1748020238363,-8042.21526615,0.00026454,2]
[362135201,1748020238376,-517.17495246,0.00026454,2]
[362135202,1748020238416,-402.32099964,0.00026454,2]
[362135203,1748020238429,-373.2110064,0.00026454,2]
[362135204,1748020238440,-393.912,0.00026454,2]
[362135205,1748020238452,-722.135001,0.00026454,2]
[362135237,1748020240289,-173.00385237,0.00026454,2]
[362135238,1748020240300,-2069.90224568,0.00026454,2]
[362135239,1748020240312,-649.85391038,0.00026454,2]
[362135240,1748020240324,-387.60496205,0.00026454,2]
[362135241,1748020240338,-3276.45,0.00026454,2]
[362135242,1748020240355,-19014.19602884,0.00026454,2]
[362135243,1748020240401,-296.82371763,0.00026454,2]
[362135244,1748020240414,-1214.98276237,0.00026454,2]
[362135245,1748020240428,-1629.89499954,0.00026454,2]
[362135246,1748020240451,-285.84463971,0.00026454,2]
[362135247,1748020240464,-487.52557497,0.00026454,2]
[362135248,1748020240477,-754.3143952,0.00026454,2]
[362135249,1748020240559,-3000.0,0.00026454,2]
[362135250,1748020240574,-489.7316938,0.00026454,2]
[362135269,1748020243219,-3045.11161068,0.00026454,2]
[362135271,1748020243283,-10580.17878912,0.00026454,2]
[362135274,1748020243343,-870.7,0.00026454,2]
[362135289,1748020243736,-22912.6357069,0.00026454,2]
[362135291,1748020243746,-1772.52,0.00026454,2]
[362135293,1748020243756,-1360.89,0.00026454,2]
[362135295,1748020243766,-150.0,0.00026454,7]
[362135297,1748020243776,-200.0,0.00026454,2]
[362135300,1748020243787,-500.0,0.00026473,2]
[362135302,1748020243797,-500.0,0.00026473,2]
[362135304,1748020243807,-500.0,0.00026473,2]
[362135306,1748020243818,-618.30173804,0.00026473,2]
[362135307,1748020243828,-500.0,0.00026473,2]
[362135308,1748020243838,-500.0,0.00026473,2]
[362135309,1748020243848,-274.452,0.0002648,2]
[362135310,1748020243858,-192.836,0.0002648,2]
[362135311,1748020243867,-441.68205044,0.00026486,15]
[362135312,1748020243877,-500.0,0.00026543,7]
[362135313,1748020243887,-150.0,0.00026547,2]
[362135314,1748020243898,-150.0,0.00026547,2]
[362135315,1748020243908,-1310.0,0.00026547,2]
[362135316,1748020243921,-936.0,0.00026547,2]
[362135317,1748020243932,-631.0,0.00026547,2]
[362135318,1748020243944,-799.0,0.00026547,2]
[362135319,1748020243954,-1461.0,0.00026547,2]
[362135321,1748020243966,-1260.0,0.00026547,2]
[362135323,1748020243978,-554.0,0.00026547,2]
[362135325,1748020243988,-921.0,0.00026547,2]
[362135326,1748020243998,-586.0,0.00026547,2]
[362135328,1748020244010,-335.03,0.00026591,2]
[362135331,1748020244020,-1000.0,0.00027021,2]
[362135333,1748020244030,-500.0,0.00027021,2]
[362135335,1748020244040,-441.68205044,0.00027072,16]
[362135337,1748020244051,-500.0,0.00027091,7]
[362135339,1748020244062,-200.0,0.0002714,2]
[362135340,1748020244072,-250.0,0.0002714,2]
[362135342,1748020244083,-215.0738,0.00027298,2]
[362135345,1748020244093,-1004.0,0.000273,3]
[362135346,1748020244104,-1002.0,0.000273,3]
[362135349,1748020244114,-500.0,0.00027365,7]
[362135351,1748020244124,-504.06119418,0.00027373,2]
[362135353,1748020244135,-500.0,0.00027373,2]
[362135355,1748020244145,-225.17909497,0.00027386,2]
[362135357,1748020244155,-168.98064926,0.00027386,2]
[362135359,1748020244166,-500.0,0.00027386,2]
[362135361,1748020244176,-46282.142893,0.00027387,3]
[362135363,1748020244186,-5032.0,0.00027396,30]
[362135365,1748020244196,-420.0,0.00027397,4]
[362135367,1748020244206,-420.0,0.00027397,4]
[362135369,1748020244216,-420.0,0.00027397,4]
[362135371,1748020244227,-420.0,0.00027397,4]
[362135374,1748020244237,-420.0,0.00027397,4]
[362135376,1748020244247,-448.25756401,0.00027397,4]
[362135378,1748020244256,-420.0,0.00027397,4]
[362135380,1748020244268,-420.0,0.00027397,4]
[362135382,1748020244278,-420.0,0.00027397,4]
[362135384,1748020244288,-420.0,0.00027397,4]
[362135386,1748020244298,-420.0,0.00027397,4]
[362135388,1748020244308,-420.0,0.00027397,4]
[362135390,1748020244318,-420.0,0.00027397,4]
[362135392,1748020244329,-420.0,0.00027397,4]
[362135394,1748020244339,-420.0,0.00027397,4]
[362135396,1748020244350,-420.0,0.00027397,4]
[362135399,1748020244361,-510.21,0.00027397,4]
[362135401,1748020244371,-420.0,0.00027397,4]
[362135403,1748020244381,-479.46,0.00027397,4]
[362135405,1748020244392,-306.57,0.00027397,4]
[362135407,1748020244402,-279.53,0.00027397,4]
[362135409,1748020244412,-420.0,0.00027397,4]
[362135411,1748020244422,-380.0,0.00027397,4]
[362135413,1748020244432,-380.0,0.00027397,4]
[362135415,1748020244442,-500.0,0.00027397,4]
[362135417,1748020244452,-420.0,0.00027397,4]
[362135419,1748020244463,-233.77,0.00027397,4]
[362135421,1748020244473,-420.0,0.00027397,4]
[362135424,1748020244484,-2360.581,0.00027397,16]
[362135426,1748020244494,-172.752,0.00027397,16]
[362135428,1748020244504,-420.0,0.00027397,4]
[362135430,1748020244515,-345.73,0.00027397,4]
[362135432,1748020244525,-420.0,0.00027397,4]
[362135434,1748020244535,-420.0,0.00027397,4]
[362135436,1748020244546,-448.87994101,0.00027397,4]
[362135438,1748020244555,-425.07723393,0.00027397,4]
[362135440,1748020244565,-420.0,0.00027397,4]
[362135442,1748020244575,-420.0,0.00027397,4]
[362135444,1748020244586,-420.0,0.00027397,4]
[362135446,1748020244596,-502.58987102,0.00027397,4]
[362135448,1748020244606,-223.38,0.00027397,4]
[362135450,1748020244616,-420.0,0.00027397,4]
[362135453,1748020244626,-225.85824489,0.00027397,4]
[362135455,1748020244637,-420.0,0.00027397,4]
[362135457,1748020244647,-420.0,0.00027397,4]
[362135459,1748020244657,-420.0,0.00027397,4]
[362135461,1748020244667,-161.94,0.00027397,4]
[362135463,1748020244677,-332.11,0.00027397,4]
[362135465,1748020244688,-420.0,0.00027397,4]
[362135467,1748020244698,-420.0,0.00027397,4]
[362135469,1748020244709,-420.0,0.00027397,4]
[362135471,1748020244720,-256.98,0.00027397,4]
[362135473,1748020244730,-420.0,0.00027397,4]
[362135475,1748020244741,-420.0,0.00027397,4]
[362135477,1748020244752,-420.0,0.00027397,4]
[362135480,1748020244763,-420.0,0.00027397,4]
[362135482,1748020244773,-420.0,0.00027397,4]
[362135484,1748020244783,-420.0,0.00027397,4]
[362135486,1748020244794,-420.0,0.00027397,4]
[362135488,1748020244804,-420.0,0.00027397,4]
[362135490,1748020244814,-420.0,0.00027397,4]
[362135492,1748020244824,-420.0,0.00027397,4]
[362135494,1748020244835,-420.0,0.00027397,4]
[362135496,1748020244845,-420.0,0.00027397,4]
[362135535,1748020244855,-420.0,0.00027397,4]
[362135539,1748020245228,-420.0,0.00027397,4]
[362135541,1748020245243,-420.0,0.00027397,4]
[362135543,1748020245253,-420.0,0.00027397,4]
[362135545,1748020245262,-420.0,0.00027397,4]
[362135547,1748020245272,-420.0,0.00027397,4]
[362135549,1748020245281,-472.8437839,0.00027397,2]
[362135551,1748020245291,-420.0,0.00027397,4]
[362135553,1748020245301,-420.0,0.00027397,4]
[362135555,1748020245310,-420.0,0.00027397,4]
[362135557,1748020245319,-420.0,0.00027397,4]
[362135559,1748020245329,-420.0,0.00027397,4]
[362135561,1748020245338,-420.0,0.00027397,4]
[362135563,1748020245348,-420.0,0.00027397,4]
[362135565,1748020245357,-420.0,0.00027397,4]
[362135567,1748020245367,-471.37651498,0.00027397,4]
[362135569,1748020245376,-420.0,0.00027397,4]
[362135571,1748020245384,-398.00152761,0.00027397,4]
[362135573,1748020245394,-420.0,0.00027397,4]
[362135575,1748020245402,-420.0,0.00027397,4]
[362135577,1748020245412,-420.0,0.00027397,4]
[362135579,1748020245421,-194.91478054,0.00027397,4]
[362135581,1748020245430,-420.0,0.00027397,4]
[362135583,1748020245438,-420.0,0.00027397,4]
[362135585,1748020245448,-420.0,0.00027397,4]
[362135587,1748020245458,-435.06575508,0.00027397,4]
[362135589,1748020245467,-420.0,0.00027397,4]
[362135591,1748020245476,-420.0,0.00027397,4]
[362135593,1748020245485,-420.0,0.00027397,4]
[362135595,1748020245495,-420.0,0.00027397,4]
[362135596,1748020245504,-420.0,0.00027397,4]
[362135598,1748020245514,-504.82,0.00027397,4]
[362135600,1748020245523,-567.25659851,0.00027397,4]
[362135602,1748020245532,-420.0,0.00027397,4]
[362135604,1748020245541,-420.0,0.00027397,4]
[362135606,1748020245551,-420.0,0.00027397,4]
[362135608,1748020245560,-420.0,0.00027397,4]
[362135610,1748020245569,-420.0,0.00027397,4]
[362135612,1748020245578,-420.0,0.00027397,4]
[362135614,1748020245587,-420.0,0.00027397,4]
[362135616,1748020245597,-420.0,0.00027397,4]
[362135618,1748020245606,-479.370964,0.00027397,4]
[362135620,1748020245615,-420.0,0.00027397,4]
[362135622,1748020245625,-420.0,0.00027397,4]
[362135624,1748020245634,-420.0,0.00027397,4]
[362135626,1748020245643,-473.82863857,0.00027397,4]
[362135628,1748020245652,-420.0,0.00027397,4]
[362135630,1748020245662,-420.0,0.00027397,4]
[362135632,1748020245671,-420.0,0.00027397,4]
[362135634,1748020245680,-188.49,0.00027397,4]
[362135636,1748020245689,-420.0,0.00027397,4]
[362135638,1748020245699,-420.0,0.00027397,4]
[362135640,1748020245709,-420.0,0.00027397,4]
[362135642,1748020245717,-420.0,0.00027397,4]
[362135644,1748020245727,-421.06265454,0.00027397,4]
[362135646,1748020245737,-420.0,0.00027397,4]
[362135648,1748020245746,-420.0,0.00027397,4]
[362135650,1748020245755,-420.0,0.00027397,4]
[362135652,1748020245765,-437.80584445,0.00027397,4]
[362135654,1748020245774,-500.0,0.00027397,2]
[362135656,1748020245783,-420.0,0.00027397,4]
[362135658,1748020245792,-166.35527439,0.00027397,4]
[362135660,1748020245802,-561.36725864,0.00027397,4]
[362135662,1748020245811,-420.0,0.00027397,4]
[362135664,1748020245820,-420.0,0.00027397,4]
[362135666,1748020245829,-420.0,0.00027397,4]
[362135668,1748020245839,-420.0,0.00027397,4]